[Event "SWE-ch Juniors 2018"]
[Site "Ronneby"]
[Date "2018.07.06"]
[Round "7"]
[White "Kucuksari, Kaan"]
[Black "Berglind, Axel"]
[Result "1-0"]
[ECO "D33"]
[WhiteElo "2296"]
[BlackElo "2096"]
[Annotator "NA"]
[PlyCount "89"]
[EventDate "2018.06.30"]
[EventType "tourn"]
[EventCountry "SWE"]
[SourceTitle "playchess.com"]
[Source "ChessBase"]
[SourceQuality "1"]
[TimeControl "40/5400+30:1800+30"]

{[%evp 14,70,35,32767,32767,7,32767,32767,32767,32767,32767,26,39,37,43,39,32767,25,106,20,38,0,0,0,0,0,0,0,0,0,0,0,48,0,0,0,0,0,75,85,78,87,76,90,82,68,61,48,101,32767,32767,32767,32767,32767,32767,32767,32767,32767,222]} 1. d4 {[%emt 0:00:00]} d5 {[%emt 0:00:00]} 2. Nf3 {[%emt 0:00:00]} Nf6 {[%emt 0:00:00]} 3. c4 {[%emt 0:00:00]} e6 {[%emt 0:00:00]} 4. g3 {[%emt 0:00:00]} c5 {[%emt 0:00:45]} 5. cxd5 {[%emt 0:00:00]} exd5 {[%emt 0:00:20]} 6. Nc3 {[%emt 0:00:00]} Nc6 {[%emt 0:00:38]} 7. Bg2 {[%emt 0:00:00]} h6 {[%emt 0:01:09]} 8. O-O {[%emt 0:00:05]} Be7 {[%emt 0:00:53]} 9. Be3 {[%emt 0:03:13]} cxd4 {[%emt 0:01:20]} 10. Nxd4 {[%emt 0:00:55]} O-O {[%emt 0:00:16]} 11. Rc1 {[%emt 0:00:27]} Be6 {[%emt 0:09:15] D34: Tarrasch Defence: 6 g3 Nf6 7 Bg2 Be7} 12. Qa4 {[%emt 0:02:22]} Qd7 {[%emt 0:00:56]} 13. Nxe6 {[%emt 0:04:53]} fxe6 {[%emt 0:00:50] [#]} 14. Bh3 $146 {[%emt 0:02:58]} ({Predecessor:} 14. Rfd1 Bd6 15. Bh3 Qf7 16. Nb5 Rfd8 17. Rc2 e5 18. Nxd6 Rxd6 19. Bc5 {½-½ (72) Delchev,A (2603)-Bolado Saez,S (2263) Albacete 2004}) 14... a6 {[%emt 0:07:49]} 15. Bb6 {[%emt 0:03:39]} Bd6 {[%emt 0:06:45]} (15... Bd8 $11 16. Be3 Qf7) 16. Rfd1 {[%emt 0:01:42]} (16. e4 $16 Qf7 17. Qb3) 16... Qf7 {[%emt 0:01:17]} 17. e4 {[%emt 0:02:26]} Nd7 {[%emt 0:05:31]} 18. Be3 {[%emt 0:02:22]} d4 $1 {[%emt 0:22:03]} 19. Bxd4 {[%emt 0:04:33]} b5 $1 {[%emt 0:00:05]} ({Much weaker is} 19... Bc5 20. Bxc5 Nxc5 21. Qc2 $16) 20. Qc2 {[%emt 0:00:43]} Nxd4 {[%emt 0:00:08]} 21. Rxd4 {[%emt 0:00:04]} Bc5 {[%emt 0:00:04]} 22. Rd2 {[%emt 0:06:55]} Rac8 {[%emt 0:00:12]} 23. Rf1 {[%emt 0:08:42]} Ne5 {[%emt 0:20:09]} 24. Kh1 {[%emt 0:02:21]} Nf3 {[%emt 0:02:23]} 25. Rd3 {[%emt 0:03:00]} Qh5 {[%emt 0:04:44]} (25... Ne5 $11) 26. Bxe6+ {[%emt 0:03:18]} Kh8 {[%emt 0:00:04]} 27. h3 {[%emt 0:03:21]} Nd4 {[%emt 0:00:04] [#]} 28. Rxd4 $1 {[%emt 0:02:56]} Bxd4 {[%emt 0:00:03]} 29. Bg4 {[%emt 0:01:54]} Qf7 {[%emt 0:00:04]} 30. Bxc8 {[%emt 0:00:37]} Qf3+ {[%emt 0:00:04]} 31. Kh2 {[%emt 0:00:29]} Rxc8 {[%emt 0:01:58]} 32. Qd1 {[%emt 0:02:03]} Qf6 {[%emt 0:00:04]} 33. Nd5 {[%emt 0:06:44]} Qe5 {[%emt 0:00:02]} 34. Nf4 {[%emt 0:05:55]} Rc6 {[%emt 0:01:42]} 35. b3 {[%emt 0:01:27]} g5 $18 {[%emt 0:02:00]} 36. Ne2 {[%emt 0:07:05]} Bb6 {[%emt 0:00:19]} 37. Qd3 {[%emt 0:01:48]} Rd6 {[%emt 0:01:39]} 38. Qc2 {[%emt 0:03:13]} Qc5 {[%emt 0:00:08]} 39. Qb2+ {[%emt 0:03:42]} Kg8 {[%emt 0:00:18]} 40. Ng1 {[%emt 0:08:02]} Rd4 {[%emt 0:04:28]} 41. Rc1 {[%emt 0:33:35]} Qd6 {[%emt 0:31:55]} 42. Rc8+ {[%emt 0:00:00]} Kf7 {[%emt 0:00:00]} 43. Nf3 {[%emt 0:00:00]} Rxe4 {[%emt 0:00:00]} 44. Qh8 {[%emt 0:00:00]} Kg6 {[%emt 0:00:00]} 45. Qg8+ {[%emt 0:00:00]} 1-0

[Event "SWE-ch Juniors 2018"]
[Site "Ronneby"]
[Date "2018.07.06"]
[Round "7"]
[White "Storme, Isak"]
[Black "Pantzar, Milton"]
[Result "1/2-1/2"]
[ECO "C16"]
[WhiteElo "2277"]
[BlackElo "2333"]
[Annotator "NA"]
[PlyCount "93"]
[EventDate "2018.06.30"]
[EventType "tourn"]
[EventCountry "SWE"]
[SourceTitle "playchess.com"]
[Source "ChessBase"]
[SourceQuality "1"]
[TimeControl "40/5400+30:1800+30"]

1. e4 {[%emt 0:00:00]} e6 {[%emt 0:00:00]} 2. d4 {[%emt 0:00:00]} d5 {[%emt 0:00:00]} 3. Nc3 {[%emt 0:00:22]} Bb4 {[%emt 0:00:13]} 4. e5 {[%emt 0:00:08]} b6 {[%emt 0:00:47]} 5. Qg4 {[%emt 0:04:04]} Bf8 {[%emt 0:00:39]} 6. Nf3 {[%emt 0:14:21]} Qd7 {[%emt 0:05:39] LiveBook: 83 Games} 7. Be2 {[%emt 0:20:58]} Ne7 {[%emt 0:09:28] C16: French: 3 Nc3 Bb4 4 e5: Lines without ...c5} (7... Nc6 8. Nd1 Bb7 9. c3 O-O-O 10. b4 f6 11. h4 fxe5 12. b5 Na5 13. Nxe5 Qe8 14. Qh5 g6 15. Qf3 {1-0 (34) Bartel,M (2631)-Hasenohr,B (2317) Biel 2015}) 8. O-O {[%emt 0:11:23]} Ba6 {[%emt 0:03:12]} 9. a4 {[%emt 0:03:51]} Bxe2 {[%emt 0:15:22]} 10. Nxe2 {[%emt 0:00:06]} Nf5 $146 {[%emt 0:00:49]} ({Predecessor:} 10... Nbc6 11. Ng3 h6 12. Bd2 Nf5 13. a5 b5 14. a6 g6 15. c3 {1-0 (51) Paragua,M (2522)-Praveen Kumar,C (2338) Chennai 2012}) 11. a5 {[%emt 0:11:00]} b5 {[%emt 0:07:13]} 12. Ng3 {[%emt 0:02:48]} g6 {[%emt 0:13:15]} 13. Bg5 {[%emt 0:02:17]} Bg7 {[%emt 0:09:27]} 14. Nxf5 {[%emt 0:00:41]} exf5 {[%emt 0:01:38]} 15. Qh4 {[%emt 0:00:37]} h6 {[%emt 0:02:21]} 16. Bf6 {[%emt 0:01:19]} O-O {[%emt 0:01:27]} 17. Rfe1 {[%emt 0:01:31]} Qe6 {[%emt 0:01:39]} 18. Bg5 {[%emt 0:00:49]} h5 {[%emt 0:02:34]} 19. Bf6 {[%emt 0:01:16]} Re8 {[%emt 0:04:15]} 20. Bxg7 {[%emt 0:10:02]} Kxg7 {[%emt 0:00:02]} 21. Qf6+ {[%emt 0:00:40]} Kg8 {[%emt 0:03:14]} 22. Ng5 $2 {[%emt 0:02:11]} (22. Qxe6 $16 Rxe6 23. Ng5) 22... Qxf6 {[%emt 0:02:02]} 23. exf6 {[%emt 0:00:05]} Nd7 {[%emt 0:00:11]} 24. Re7 {[%emt 0:01:42]} Rxe7 {[%emt 0:00:32]} 25. fxe7 {[%emt 0:00:22]} Re8 {[%emt 0:00:13]} 26. Re1 {[%emt 0:00:28]} Nb8 {[%emt 0:01:12]} 27. Nf3 {[%emt 0:02:50]} Nc6 {[%emt 0:00:48]} 28. Re3 {[%emt 0:00:57]} Rxe7 {[%emt 0:10:20]} 29. Rxe7 {[%emt 0:00:13]} Nxe7 {[%emt 0:00:01]} 30. b4 {[%emt 0:00:20]} f6 {[%emt 0:00:57]} 31. Ne1 {[%emt 0:01:14]} Kf7 {[%emt 0:01:18]} 32. Nd3 {[%emt 0:01:28]} Nc6 {[%emt 0:00:28]} 33. c3 {[%emt 0:00:35]} Nd8 {[%emt 0:00:41]} 34. Nf4 {[%emt 0:01:07]} c6 {[%emt 0:00:20]} 35. f3 {[%emt 0:02:30]} Kg7 {[%emt 0:01:13]} 36. Kf2 {[%emt 0:01:18]} Kh6 $15 {[%emt 0:00:23]} 37. h4 {[%emt 0:01:47]} g5 {[%emt 0:03:43]} 38. Nd3 {[%emt 0:00:58]} Kg6 {[%emt 0:00:49]} 39. hxg5 {[%emt 0:00:33]} fxg5 {[%emt 0:00:20]} 40. Ne5+ {[%emt 0:00:06]} Kf6 {[%emt 0:00:33]} 41. f4 {[%emt 0:13:18]} gxf4 {[%emt 0:07:14]} 42. a6 {[%emt 0:05:01]} Kg5 {[%emt 0:05:42]} 43. Kf3 {[%emt 0:00:10]} h4 {[%emt 0:01:00]} 44. Kf2 {[%emt 0:02:07]} Kf6 {[%emt 0:00:57]} 45. Kf3 {[%emt 0:00:19]} Kg5 {[%emt 0:00:15]} 46. Kf2 {[%emt 0:00:09]} Kf6 {[%emt 0:00:05]} 47. Kf3 {[%emt 0:00:06] Kxe5 Ke4+} 1/2-1/2

[Event "SWE-ch Juniors 2018"]
[Site "Ronneby"]
[Date "2018.07.06"]
[Round "7"]
[White "Sorensen, Hampus"]
[Black "Crevatin, Leo"]
[Result "1-0"]
[ECO "A06"]
[WhiteElo "2204"]
[BlackElo "2224"]
[Annotator "NA"]
[PlyCount "131"]
[EventDate "2018.06.30"]
[EventType "tourn"]
[EventCountry "SWE"]
[SourceTitle "playchess.com"]
[Source "ChessBase"]
[SourceQuality "1"]
[TimeControl "40/5400+30:1800+30"]

1. Nf3 {[%emt 0:00:00]} d5 {[%emt 0:00:01]} 2. c4 {[%emt 0:00:06]} e6 {[%emt 0:00:50]} 3. b3 {[%emt 0:01:43]} Nf6 {[%emt 0:02:16]} 4. g3 {[%emt 0:02:17]} Nbd7 {[%emt 0:04:00]} 5. Bb2 {[%emt 0:04:14]} b6 {[%emt 0:02:18]} 6. Bg2 {[%emt 0:01:59]} Bb7 {[%emt 0:00:25]} 7. O-O {[%emt 0:00:49]} Be7 {[%emt 0:06:32]} 8. cxd5 {[%emt 0:05:34]} exd5 {[%emt 0:02:16]} 9. d4 {[%emt 0:02:45]} O-O {[%emt 0:02:03]} 10. Nc3 {[%emt 0:02:49] LiveBook: 122 Games} Ne4 {[%emt 0:06:25]} 11. Qc2 {[%emt 0:09:13]} Nxc3 {[%emt 0:01:26]} 12. Qxc3 {[%emt 0:02:13]} Re8 $146 {[%emt 0:03:52] E17: Queen's Indian: 4 g3 Bb7 5 Bg2 Be7} ({Predecessor:} 12... Bd6 13. Rac1 Nf6 14. Ne5 Qe8 15. Nc4 Ne4 16. Bxe4 Qxe4 17. Nxd6 cxd6 18. Rfe1 Rfe8 19. Ba3 Ba6 20. Qd2 {0-1 (41) Behling,H (2264)-Ellis,L (2340) ICCF email 2016}) 13. e3 {[%emt 0:02:31]} a5 {[%emt 0:04:34]} 14. Rfd1 {[%emt 0:04:26]} Bd6 {[%emt 0:03:04]} 15. Qc2 {[%emt 0:03:11]} Qe7 {[%emt 0:05:57]} 16. Rac1 {[%emt 0:02:52]} Rac8 {[%emt 0:07:18]} 17. Qb1 {[%emt 0:04:37]} c6 {[%emt 0:05:28]} 18. Re1 {[%emt 0:04:33]} g6 {[%emt 0:04:25]} 19. Nd2 {[%emt 0:05:54]} Bb4 {[%emt 0:02:01]} 20. Bc3 {[%emt 0:00:47]} Nf6 {[%emt 0:03:20]} 21. Bxb4 {[%emt 0:05:09]} Qxb4 {[%emt 0:01:16]} 22. Qb2 {[%emt 0:05:33]} Qd6 {[%emt 0:04:24]} 23. Rcd1 {[%emt 0:04:34]} Rc7 {[%emt 0:02:32]} 24. e4 {[%emt 0:04:52]} Rce7 {[%emt 0:04:40]} (24... Nxe4 $11 25. Nxe4 dxe4) 25. e5 {[%emt 0:01:29]} Qd8 {[%emt 0:00:41]} 26. Qb1 {[%emt 0:02:27]} Nd7 {[%emt 0:01:52]} 27. f4 {[%emt 0:00:05]} f6 {[%emt 0:07:22]} 28. exf6 {[%emt 0:01:34]} Nxf6 {[%emt 0:00:27]} 29. Nf3 {[%emt 0:00:34]} Ng4 {[%emt 0:01:45]} 30. Ne5 {[%emt 0:03:06]} Nxe5 {[%emt 0:00:25]} 31. dxe5 {[%emt 0:00:30]} c5 {[%emt 0:01:17]} 32. a4 {[%emt 0:01:18]} Qd7 {[%emt 0:00:59]} 33. h4 {[%emt 0:02:57]} Rd8 {[%emt 0:01:23]} 34. Kh2 {[%emt 0:01:44]} b5 {[%emt 0:01:11]} 35. Qa2 {[%emt 0:02:37]} b4 {[%emt 0:01:46]} 36. Qc2 {[%emt 0:00:32]} Qc7 {[%emt 0:01:44]} 37. f5 {[%emt 0:01:38]} gxf5 $11 {[%emt 0:01:00]} 38. Qxf5 {[%emt 0:00:13]} Rf8 {[%emt 0:00:42]} 39. Qc2 {[%emt 0:02:38]} Ref7 {[%emt 0:02:08]} 40. Rf1 {[%emt 0:02:09]} Rxf1 {[%emt 0:01:08]} 41. Rxf1 {[%emt 0:30:16]} Rxf1 {[%emt 0:30:31]} 42. Bxf1 {[%emt 0:00:01]} c4 {[%emt 0:00:00]} 43. bxc4 {[%emt 0:00:00]} Qxe5 {[%emt 0:00:00]} 44. Bg2 {[%emt 0:00:00]} Qc7 {[%emt 0:00:00]} 45. c5 {[%emt 0:00:00]} Bc6 {[%emt 0:00:00]} 46. Qd1 {[%emt 0:00:00]} Qd7 {[%emt 0:00:00]} 47. Qb3 {[%emt 0:00:00]} Qe6 {[%emt 0:00:00]} 48. Qd3 {[%emt 0:00:00]} Qd7 {[%emt 0:00:00]} 49. Qe3 {[%emt 0:00:00]} Kf8 {[%emt 0:02:06]} 50. Bh3 {[%emt 0:00:00]} Qc7 {[%emt 0:00:40]} 51. Qh6+ {[%emt 0:00:00]} Ke8 {[%emt 0:00:27]} 52. Qe6+ {[%emt 0:00:00]} Kf8 {[%emt 0:00:21]} 53. Qf6+ {[%emt 0:00:00]} Ke8 {[%emt 0:00:23]} 54. Qh8+ {[%emt 0:00:00]} Ke7 {[%emt 0:00:39]} 55. Qxh7+ {[%emt 0:00:18]} Kd8 {[%emt 0:00:33]} 56. Qg8+ {[%emt 0:00:24]} Ke7 {[%emt 0:00:10]} 57. Qg5+ {[%emt 0:01:10]} Ke8 {[%emt 0:00:29]} 58. h5 {[%emt 0:01:10]} b3 {[%emt 0:00:38]} 59. Qg6+ {[%emt 0:01:06]} Kd8 {[%emt 0:00:34]} 60. h6 {[%emt 0:00:46]} Be8 {[%emt 0:00:22]} 61. Qf6+ {[%emt 0:00:28]} Qe7 {[%emt 0:00:21]} 62. Qb6+ {[%emt 0:00:04]} Qc7 {[%emt 0:00:24]} 63. Qxc7+ {[%emt 0:00:18]} Kxc7 {[%emt 0:00:02]} 64. h7 {[%emt 0:00:12]} b2 {[%emt 0:00:19]} 65. Bf5 {[%emt 0:00:05]} b1=B {[%emt 0:00:30]} 66. Bxb1 1-0

[Event "SWE-ch Juniors 2018"]
[Site "Ronneby"]
[Date "2018.07.06"]
[Round "7"]
[White "Emmoth, Alfons"]
[Black "Carlsson, Ludvig"]
[Result "1/2-1/2"]
[ECO "D86"]
[WhiteElo "2176"]
[BlackElo "2169"]
[Annotator "NA"]
[PlyCount "80"]
[EventDate "2018.06.30"]
[EventType "tourn"]
[EventCountry "SWE"]
[SourceTitle "playchess.com"]
[Source "ChessBase"]
[SourceQuality "1"]
[TimeControl "40/5400+30:1800+30"]

{[%evp 24,71,12,32767,32767,9,4,32767,32767,32767,-3,32767,-23,-17,-3,-58,14,4,5,0,9,10,18,16,13,16,21,32767,8,11,17,10,10,11,14,22,54,80,32767,83,85,69,32767,32767,92,100,100,104,210,75]} 1. d4 {[%emt 0:00:00]} Nf6 {[%emt 0:00:00]} 2. c4 {[%emt 0:00:00]} g6 {[%emt 0:00:00]} 3. Nc3 {[%emt 0:00:00]} d5 {[%emt 0:00:01]} 4. cxd5 {[%emt 0:00:00]} Nxd5 {[%emt 0:00:06]} 5. e4 {[%emt 0:00:08]} Nxc3 {[%emt 0:00:04]} 6. bxc3 {[%emt 0:00:05]} Bg7 {[%emt 0:00:05]} 7. Bc4 {[%emt 0:00:08]} O-O {[%emt 0:00:04]} 8. Ne2 {[%emt 0:00:05]} Nc6 {[%emt 0:00:05]} 9. O-O {[%emt 0:01:18]} b6 {[%emt 0:00:50]} 10. Be3 {[%emt 0:02:29]} Bb7 {[%emt 0:00:39]} 11. Qd2 {[%emt 0:02:34]} Qd6 {[%emt 0:00:07]} 12. Rad1 {[%emt 0:06:09] D86: Exchange Grünfeld: Classical Line (7 Bc4)} Na5 {[%emt 0:00:20]} 13. Bd3 {[%emt 0:01:10]} e6 {[%emt 0:02:54]} (13... c5 14. Bf4 Qd7 15. Bh6 cxd4 16. Bxg7 Kxg7 17. cxd4 Rac8 18. Rc1 e6 19. h4 Nc6 {0-1 (33) Shemeakin,A (2264)-Popov,I (2647) Kaliningrad 2015}) 14. Bh6 {[%emt 0:06:53]} c5 $146 {[%emt 0:00:08]} ({Predecessor:} 14... f5 15. Bxg7 Kxg7 16. e5 Qe7 17. Nf4 Rac8 18. c4 Rfd8 {0-1 (40) Moberg,K (2305)-Bergstrom,M (2206) Sweden 2008}) 15. Bxg7 {[%emt 0:01:55]} Kxg7 {[%emt 0:00:06]} 16. Qe3 {[%emt 0:04:29]} cxd4 {[%emt 0:06:44]} 17. Qxd4+ {[%emt 0:04:32]} Qxd4 {[%emt 0:00:08]} 18. cxd4 {[%emt 0:00:02]} Rac8 {[%emt 0:01:45]} 19. Rc1 {[%emt 0:02:50]} (19. f3 $11) 19... Rxc1 {[%emt 0:00:52]} (19... Nc6 $15) 20. Rxc1 {[%emt 0:00:44]} Rc8 {[%emt 0:00:04]} 21. Rxc8 {[%emt 0:00:52]} Bxc8 {[%emt 0:00:06]} 22. f3 {[%emt 0:02:18]} Nc6 {[%emt 0:12:28]} 23. Kf2 {[%emt 0:04:01]} Nb4 {[%emt 0:00:35]} 24. Bb1 {[%emt 0:04:34]} Ba6 {[%emt 0:05:56]} 25. Ke3 {[%emt 0:03:10]} Bxe2 {[%emt 0:07:31]} 26. Kxe2 {[%emt 0:00:12]} Kf6 {[%emt 0:00:07]} 27. a3 {[%emt 0:03:17]} Nc6 {[%emt 0:01:50]} 28. Kd3 {[%emt 0:01:26]} Ke7 {[%emt 0:01:08]} 29. Kc4 {[%emt 0:03:02]} Kd6 {[%emt 0:00:51]} 30. e5+ {[%emt 0:01:59]} Kc7 {[%emt 0:00:47]} 31. Be4 {[%emt 0:02:38]} a6 {[%emt 0:02:06] [#]} 32. f4 $1 {[%emt 0:03:16]} b5+ {[%emt 0:09:54]} 33. Kc5 {[%emt 0:05:35]} Nb8 {[%emt 0:00:10]} 34. d5 {[%emt 0:03:20]} Nd7+ {[%emt 0:00:07]} 35. Kd4 {[%emt 0:03:33]} Kb6 {[%emt 0:01:56] [#]} (35... exd5 $16 36. Bxd5 f6) 36. d6 $16 {[%emt 0:02:55]} (36. g4 $1 $18 {ist der präzise Gewinnweg.}) 36... a5 {[%emt 0:05:27]} 37. g4 {[%emt 0:05:08]} Nb8 {[%emt 0:01:13]} 38. Bb1 {[%emt 0:05:42]} Nc6+ {[%emt 0:01:07]} 39. Ke4 {[%emt 0:01:01]} Kc5 {[%emt 0:01:51]} 40. Ba2 {[%emt 0:04:16]} Nd8 {[%emt 0:03:54]} 1/2-1/2

[Event "SWE-ch Juniors 2018"]
[Site "Ronneby"]
[Date "2018.07.06"]
[Round "7"]
[White "Forsberg, Andre"]
[Black "Sundin, Emanuel"]
[Result "0-1"]
[ECO "B34"]
[WhiteElo "2025"]
[BlackElo "2152"]
[Annotator "NA"]
[PlyCount "110"]
[EventDate "2018.06.30"]
[EventType "tourn"]
[EventCountry "SWE"]
[SourceTitle "playchess.com"]
[Source "ChessBase"]
[SourceQuality "1"]
[TimeControl "40/5400+30:1800+30"]

1. e4 {[%emt 0:00:00]} c5 {[%emt 0:00:00]} 2. Nf3 {[%emt 0:00:00]} Nc6 {[%emt 0:00:00]} 3. d4 {[%emt 0:00:00]} cxd4 {[%emt 0:00:05]} 4. Nxd4 {[%emt 0:00:00]} g6 {[%emt 0:00:40]} 5. Nc3 {[%emt 0:00:00]} Bg7 {[%emt 0:00:11]} 6. Be3 {[%emt 0:00:00]} Nf6 {[%emt 0:00:23]} 7. Nxc6 {[%emt 0:00:28]} bxc6 {[%emt 0:00:41]} 8. e5 {[%emt 0:00:04]} Ng8 {[%emt 0:00:44]} 9. Bd4 {[%emt 0:00:11]} Qa5 {[%emt 0:04:20]} 10. Bc4 {[%emt 0:00:32] B34: Sicilian: Accelerated Dragon with 5 Nc3: sidelines} (10. f4 Rb8 11. Bc4 Rxb2 12. O-O c5 13. Bxf7+ Kxf7 14. e6+ dxe6 15. Be5 Bxe5 16. fxe5+ Kg7 17. Ne4 Nh6 {0-1 (26) Kislinsky,A (2479)-Vorobiov,E (2585) Pardubice 2017}) 10... Bxe5 {[%emt 0:16:09]} 11. O-O {[%emt 0:00:42]} Nf6 {[%emt 0:05:30]} 12. Re1 {[%emt 0:06:38]} d6 {[%emt 0:08:37] LiveBook: 5 Games} 13. f4 $2 {[%emt 0:13:56] [#]} ({Better is} 13. Bxe5 $11 dxe5 14. Qe2) 13... Bxd4+ $1 {[%emt 0:02:42]} 14. Qxd4 {[%emt 0:00:07]} Qb6 {[%emt 0:00:14]} 15. Rad1 {[%emt 0:05:02]} d5 {[%emt 0:03:43]} 16. Bb3 {[%emt 0:05:38]} Bg4 $146 {[%emt 0:10:23]} ({Predecessor:} 16... e6 17. Ba4 Bd7 {0-1 (41) Arni,J (2268)-El Debs,F (2318) Santos 2004}) 17. Ba4 {[%emt 0:23:35]} Bd7 {[%emt 0:04:45]} 18. Kh1 {[%emt 0:10:37]} Qxd4 {[%emt 0:02:21]} 19. Rxd4 {[%emt 0:00:06]} e6 {[%emt 0:03:57]} 20. b4 {[%emt 0:04:53]} O-O $19 {[%emt 0:03:13]} 21. Bb3 {[%emt 0:02:17]} a5 {[%emt 0:11:37]} 22. a3 {[%emt 0:00:52]} Rfb8 {[%emt 0:02:23]} 23. Na4 {[%emt 0:00:53]} axb4 {[%emt 0:01:37]} 24. axb4 {[%emt 0:00:21]} Bc8 {[%emt 0:00:31]} 25. Nc5 {[%emt 0:01:08]} Nd7 {[%emt 0:00:28]} 26. Nxd7 {[%emt 0:15:34]} Bxd7 {[%emt 0:00:32]} 27. g3 {[%emt 0:02:08]} Ra7 {[%emt 0:01:27]} 28. g4 {[%emt 0:05:47]} Rab7 {[%emt 0:01:18]} 29. f5 {[%emt 0:01:01]} exf5 {[%emt 0:02:03]} 30. gxf5 {[%emt 0:01:57]} Bxf5 {[%emt 0:00:10]} 31. c3 {[%emt 0:00:05]} Be4+ {[%emt 0:04:34]} 32. Rexe4 {[%emt 0:00:56]} dxe4 {[%emt 0:00:15]} 33. Rxe4 {[%emt 0:00:05]} c5 {[%emt 0:00:46]} 34. Bd5 {[%emt 0:00:20]} Rd7 {[%emt 0:00:38]} 35. Bc6 {[%emt 0:00:07]} Rd1+ {[%emt 0:00:24]} 36. Kg2 {[%emt 0:00:12]} cxb4 {[%emt 0:01:10]} 37. cxb4 {[%emt 0:00:29]} Kg7 {[%emt 0:00:44]} 38. b5 {[%emt 0:00:20]} Rb1 {[%emt 0:02:06]} 39. Re5 {[%emt 0:00:16]} Rb6 {[%emt 0:01:00]} 40. Rd5 {[%emt 0:01:33]} Rc1 {[%emt 0:03:18]} 41. Be8 {[%emt 0:03:44]} Rc8 {[%emt 0:02:10]} 42. Bc6 {[%emt 0:00:53]} Rcxc6 {[%emt 0:02:50]} 43. bxc6 {[%emt 0:00:15]} Rxc6 {[%emt 0:00:01]} 44. Rd7 {[%emt 0:00:33]} g5 {[%emt 0:02:00]} 45. Kg3 {[%emt 0:00:38]} Kg6 {[%emt 0:00:44]} 46. Kg2 {[%emt 0:00:29]} f5 {[%emt 0:00:34]} 47. Rd8 {[%emt 0:00:16]} f4 {[%emt 0:01:20]} 48. Rg8+ {[%emt 0:00:43]} Kh5 {[%emt 0:00:36]} 49. Rg7 {[%emt 0:01:24]} h6 {[%emt 0:00:12]} 50. Rd7 {[%emt 0:01:46]} Rc2+ {[%emt 0:00:46]} 51. Kg1 {[%emt 0:00:11]} Kg4 {[%emt 0:00:25]} 52. Rd3 {[%emt 0:00:37]} h5 {[%emt 0:01:01]} 53. Rd5 {[%emt 0:01:55]} Re2 {[%emt 0:02:45]} 54. Rc5 {[%emt 0:01:09]} Kf3 {[%emt 0:01:19]} 55. h3 {[%emt 0:00:42]} g4 {[%emt 0:01:16]} 0-1

[Event "SWE-ch Juniors 2018"]
[Site "Ronneby"]
[Date "2018.07.07"]
[Round "8"]
[White "Pantzar, Milton"]
[Black "Berglind, Axel"]
[Result "1-0"]
[ECO "A35"]
[WhiteElo "2333"]
[BlackElo "2096"]
[Annotator "NA"]
[PlyCount "59"]
[EventDate "2018.06.30"]
[EventType "tourn"]
[EventCountry "SWE"]
[SourceTitle "playchess.com"]
[Source "ChessBase"]
[SourceQuality "1"]
[TimeControl "40/5400+30:1800+30"]

1. c4 {[%emt 0:00:00]} Nf6 {[%emt 0:04:56]} 2. Nc3 {[%emt 0:00:22]} c5 {[%emt 0:00:15]} 3. Nf3 {[%emt 0:00:14]} Nc6 {[%emt 0:00:11]} 4. d4 {[%emt 0:00:13]} cxd4 {[%emt 0:00:54]} 5. Nxd4 {[%emt 0:00:08]} e5 {[%emt 0:00:13]} 6. Ndb5 {[%emt 0:07:25]} Bc5 {[%emt 0:01:27] A31: Symmetrical English: 2 Nf3 Nf6 3 d4} (6... d6 7. e4 a6 8. Na3 Be7 9. Nc2 O-O 10. Be2 Be6 11. O-O Rc8 12. b3 b5 13. cxb5 axb5 14. Bf3 Qd7 15. Be3 Bd8 16. Nxb5 Ne7 17. Nxd6 Rxc2 18. Qxc2 Qxd6 19. Rfd1 Qa6 20. b4 {1-0 (61) Eljanov,P (2720)-Christiansen,J (2462) Antalya 2017}) 7. Nd6+ {[%emt 0:03:39]} Kf8 $146 {[%emt 0:02:19]} ({Predecessor:} 7... Bxd6 8. Qxd6 Qe7 9. Qxe7+ Nxe7 10. Bg5 O-O 11. g3 Nf5 12. Bxf6 gxf6 {1-0 (56) Janiszewski,M (2003)-Suliborski,J (2092) Krakow 2016}) 8. e3 {[%emt 0:08:05]} g6 {[%emt 0:04:50]} 9. a3 {[%emt 0:02:39]} Kg7 {[%emt 0:07:36]} 10. b4 {[%emt 0:02:05]} Bxd6 {[%emt 0:00:07]} 11. Qxd6 {[%emt 0:00:06]} Qe7 {[%emt 0:00:35]} 12. Qd2 {[%emt 0:10:10]} d6 {[%emt 0:00:33]} 13. Bb2 {[%emt 0:01:51]} Be6 {[%emt 0:00:16]} 14. Be2 {[%emt 0:04:21]} Rad8 {[%emt 0:01:36]} 15. Nd5 {[%emt 0:05:39]} Bxd5 {[%emt 0:00:05]} 16. cxd5 {[%emt 0:00:01]} Nb8 {[%emt 0:00:09]} 17. Rc1 {[%emt 0:02:48]} Rc8 {[%emt 0:00:05]} 18. O-O {[%emt 0:02:03]} Nbd7 {[%emt 0:00:05]} 19. f4 {[%emt 0:10:18]} Ne4 {[%emt 0:01:46]} 20. Qd3 {[%emt 0:01:17]} f5 {[%emt 0:00:15]} 21. Bf3 {[%emt 0:02:53]} Nef6 {[%emt 0:00:06]} 22. Qb5 {[%emt 0:05:20]} e4 $2 {[%emt 0:00:26]} ({Black should play} 22... exf4 $14 23. exf4 Qe3+ 24. Kh1 Rxc1 25. Bxc1 (25. Rxc1 Kf7 $11) (25. Qxd7+ $2 Kh6 $19) 25... Qb6) 23. Be2 {[%emt 0:01:14]} Nb6 {[%emt 0:00:14] [#]} (23... Kf7 {kämpft weiter.} 24. Qxb7 Nb6) 24. g4 $1 {[%emt 0:00:54]} fxg4 {[%emt 0:04:19]} 25. Bxg4 {[%emt 0:01:03]} Rxc1 {[%emt 0:00:05]} 26. Rxc1 {[%emt 0:00:06]} Rf8 {[%emt 0:00:11]} 27. Be6 {[%emt 0:02:11]} Kh6 {[%emt 0:00:13]} 28. Qf1 {[%emt 0:01:22]} Nh5 {[%emt 0:00:43]} 29. Qg2 {[%emt 0:01:26]} Qh4 $18 {[%emt 0:00:45]} 30. Qxe4 {[%emt 0:04:03]} 1-0